bitfinex-derivatives/quotes_ETHF0:USTF0_20241008
["timestamp","ask_amount","ask_price","bid_price","bid_amount"]
[1728368179217,3.23,2420.6,2420.0,0.207]
[1728368179419,3.23,2420.6,2419.8,3.23]
[1728368179420,1.64675,2420.5,2420.2,0.41328]
[1728368179627,1.64675,2420.5,2419.8,5.06508]
[1728368179825,1.2335,2420.5,2420.3,0.41327]
[1728368180019,1.2335,2420.5,2420.0,4.26329]
[1728368180226,1.2335,2420.5,2420.2,0.41328]
[1728368180227,0.41326,2420.4,2420.2,0.41328]
[1728368180424,0.41326,2420.4,2420.1,0.41329]
[1728368181124,4.4635,2420.5,2419.8,0.8017]
[1728368181125,4.4635,2420.5,2420.2,0.41328]
[1728368181326,1.2335,2420.5,2420.2,0.41328]
[1728368181523,0.41326,2420.4,2419.9,3.23]
[1728368182030,0.41326,2420.4,2420.2,0.41329]
[1728368182234,1.2335,2420.5,2419.9,3.23]
[1728368182426,1.64674,2420.5,2420.3,0.41327]
[1728368185721,1.64674,2420.5,2420.4,0.41325]
[1728368185927,1.64674,2420.5,2420.0,1.03331]
[1728368185928,1.64674,2420.5,2420.3,0.41327]
[1728368186234,1.64674,2420.5,2420.1,0.4133]
[1728368186235,0.41328,2420.3,2420.1,0.4133]
[1728368187832,0.41327,2420.4,2420.2,0.41328]
[1728368188136,4.87674,2420.5,2420.3,0.41327]
[1728368188529,0.8464,2420.5,2420.4,0.41325]
[1728368189028,1.25965,2420.5,2420.3,0.41326]
[1728368190026,1.25965,2420.5,2420.1,3.23]
[1728368190027,0.8464,2420.5,2420.1,3.23]
[1728368190226,0.41326,2420.4,2420.2,0.41327]
[1728368190421,1.25964,2420.5,2420.3,0.41325]
[1728368190632,1.25965,2420.5,2420.3,0.41325]
[1728368191028,0.8464,2420.5,2420.1,3.23]
[1728368191234,0.41321,2420.7,2420.2,1.44652]
[1728368191437,0.41321,2420.7,2420.5,0.41323]
[1728368191828,3.2078,2421.0,2420.4,6.4378]
[1728368192032,0.8284,2421.1,2420.5,1.0331]
[1728368192239,1.24154,2421.1,2420.9,0.41316]
[1728368192437,1.24154,2421.1,2421.0,0.41315]
[1728368192640,0.8284,2421.1,2421.0,0.41315]
[1728368192935,1.24153,2421.1,2420.9,0.41315]
[1728368193135,0.8284,2421.1,2421.0,0.41315]
[1728368193332,3.2078,2421.3,2421.0,0.41315]
[1728368193527,0.41312,2421.2,2421.0,0.41315]
[1728368193734,3.2078,2421.3,2420.8,0.3915]
[1728368193932,3.2078,2421.3,2420.9,0.41317]
[1728368193933,0.41314,2421.1,2420.9,0.41317]
[1728368194135,3.2078,2421.3,2420.8,0.3915]
[1728368194341,3.2078,2421.3,2421.1,0.41313]
[1728368194342,3.62091,2421.3,2421.1,0.41313]
[1728368194846,3.2078,2421.3,2420.8,0.3915]
[1728368195142,0.8114,2421.6,2421.0,3.23]
[1728368195143,3.2078,2421.4,2421.0,3.23]
[1728368195342,3.2078,2421.4,2421.3,0.4131]
[1728368195746,3.6208,2421.9,2421.7,0.41303]
[1728368196043,1.2407,2422.1,2421.7,0.41303]
[1728368196240,0.413,2421.9,2421.6,0.41304]
[1728368196545,0.41302,2421.8,2421.5,0.41306]
[1728368196740,0.41302,2421.8,2421.4,3.658]
[1728368196937,0.41302,2421.8,2421.6,0.41304]
[1728368197241,0.413,2421.9,2421.7,0.41303]
[1728368197632,0.41299,2422.0,2421.7,0.41303]
[1728368197836,2.27314,2422.1,2422.0,0.41298]
[1728368197837,0.8277,2422.1,2422.0,0.41298]
[1728368198037,0.8277,2422.1,2421.6,3.23]
[1728368198444,0.8277,2422.1,2422.0,0.41298]
[1728368198742,0.8277,2422.1,2421.9,0.41299]
[1728368199145,1.24066,2422.1,2421.9,0.41299]
[1728368199340,0.41299,2422.0,2421.6,3.23]
[1728368199646,4.24032,2421.9,2421.4,0.428]
[1728368199946,3.23,2421.8,2421.2,0.41311]
[1728368200141,0.4131,2421.3,2421.0,0.83354]
[1728368200541,0.8069,2421.5,2421.0,0.4204]
[1728368200744,1.21998,2421.5,2421.2,0.41311]
[1728368201136,0.8069,2421.5,2421.2,0.41311]
[1728368201346,0.41308,2421.4,2421.2,0.41311]
[1728368201646,1.21997,2421.5,2421.3,0.41309]
[1728368201845,1.21997,2421.5,2421.0,3.6504]
[1728368201846,3.624,2421.9,2421.1,3.23]
[1728368202143,4.0438,2422.0,2421.6,3.23]
[1728368202440,4.0438,2422.0,2421.9,0.413]
[1728368202844,4.0438,2422.0,2421.6,0.7952]
[1728368203035,3.2078,2422.0,2421.9,0.413]
[1728368203239,3.2078,2422.0,2421.8,0.413]
[1728368203746,3.2078,2422.0,2421.9,0.413]
[1728368204043,0.84033,2422.3,2422.0,0.41297]
[1728368204249,0.4274,2422.3,2421.6,1.82781]
[1728368204543,0.84034,2422.3,2422.0,0.41297]
[1728368205546,3.2078,2422.4,2421.8,8.21032]
[1728368205741,3.2078,2422.4,2422.2,0.41294]
[1728368206243,0.41292,2422.4,2422.2,0.41294]
[1728368206646,0.41292,2422.4,2421.8,8.21032]
[1728368206842,0.4086,2422.5,2421.8,8.21032]
[1728368207042,0.8215,2422.5,2422.2,0.41293]
[1728368207744,0.4086,2422.5,2421.8,3.2078]
[1728368207939,0.41297,2422.1,2421.9,0.41299]
[1728368208141,4.24009,2422.4,2421.7,0.4083]
[1728368208344,0.41301,2421.9,2421.7,0.41303]
[1728368209142,1.20699,2422.0,2421.7,0.41303]
[1728368209549,0.794,2422.0,2421.8,0.413]
[1728368210051,1.20698,2422.0,2421.8,0.413]
[1728368210251,1.20698,2422.0,2421.6,0.7952]
[1728368210556,1.20698,2422.0,2421.7,0.41301]
[1728368210843,0.794,2422.0,2421.6,0.7952]
[1728368211045,0.413,2421.9,2421.7,0.41303]
[1728368211455,0.794,2422.0,2421.7,0.41303]
[1728368211644,0.413,2421.9,2421.7,0.41303]
[1728368212047,0.794,2422.0,2421.5,0.41305]
[1728368212246,0.41301,2421.8,2421.6,0.41304]
[1728368212853,0.41302,2421.8,2421.5,0.41305]
[1728368213245,0.41302,2421.8,2421.4,0.4278]
[1728368213445,0.41301,2421.9,2421.6,0.41304]
[1728368213649,0.41302,2421.8,2421.6,0.41304]
[1728368213943,0.41301,2421.9,2421.6,0.41304]
[1728368214850,0.794,2422.0,2421.6,0.41304]
[1728368215154,0.41301,2421.9,2421.6,0.41304]
[1728368217157,0.413,2421.9,2421.6,0.41304]
[1728368217549,0.41302,2421.8,2421.6,0.41304]
[1728368217853,0.413,2421.9,2421.6,0.41304]
[1728368218049,0.794,2422.0,2421.4,0.4278]
[1728368218246,0.794,2422.0,2421.7,0.41302]
[1728368218442,0.413,2421.9,2421.7,0.41302]
[1728368219056,1.20699,2422.0,2421.4,1.4605]
[1728368219248,0.413,2421.9,2421.7,0.41302]
[1728368220754,0.794,2422.0,2421.4,1.4605]
[1728368221055,0.794,2422.0,2421.9,0.413]
[1728368221257,0.4026,2422.0,2421.9,0.413]
[1728368221852,0.7771,2422.3,2421.7,0.4216]
[1728368222059,0.41296,2422.2,2422.0,0.41297]
[1728368222260,0.8054,2422.3,2422.2,0.41295]
[1728368222764,0.41289,2422.6,2422.4,0.4129]
[1728368222953,0.4148,2422.6,2422.5,0.41289]
[1728368223549,0.41284,2422.9,2422.4,3.22]
[1728368223550,0.41284,2422.9,2422.7,0.41285]
[1728368223768,0.3967,2422.9,2422.4,3.22]
[1728368224060,0.41284,2422.8,2422.5,0.41289]
[1728368224247,0.41285,2422.8,2422.6,0.41287]
[1728368224652,0.41285,2422.8,2422.7,0.41286]
[1728368225054,0.3967,2422.9,2422.8,0.41284]
[1728368225358,3.2078,2423.0,2422.9,0.41283]
[1728368225957,3.2078,2423.0,2422.9,0.80813]
[1728368226963,3.2078,2423.0,2422.6,0.41288]
[1728368226964,0.41285,2422.8,2422.6,0.41288]
[1728368227757,0.8181,2422.9,2422.6,3.22]
[1728368228155,0.8181,2422.9,2422.7,0.41286]
[1728368229260,0.8181,2422.9,2422.8,0.41284]
[1728368230167,0.8181,2422.9,2422.6,3.63287]
[1728368230168,1.23093,2422.9,2422.6,3.63287]
[1728368230364,1.23093,2422.9,2422.7,0.41286]
[1728368230759,1.23093,2422.9,2422.4,3.6031]
[1728368230760,0.8181,2422.9,2422.4,6.8231]
[1728368231062,0.41284,2422.8,2422.6,0.41286]
[1728368231467,0.41284,2422.8,2422.6,0.41287]
[1728368231759,0.41284,2422.8,2422.4,6.8231]
[1728368231959,0.41286,2422.8,2422.4,6.8231]
[1728368232158,0.41286,2422.8,2422.6,0.41287]
[1728368232558,0.8181,2422.9,2422.6,0.41287]
[1728368232764,1.23094,2422.9,2422.6,0.41287]
[1728368232969,0.8181,2422.9,2422.4,6.8231]
[1728368233465,0.8181,2422.9,2422.8,0.41284]
[1728368233858,0.8181,2422.9,2422.7,0.41285]
[1728368234769,0.8181,2422.9,2422.6,3.22]
[1728368234966,0.4181,2422.9,2422.6,3.22]
[1728368235169,0.4181,2422.9,2422.8,0.41284]
[1728368236770,0.4181,2422.9,2422.6,3.22]
[1728368236971,0.83093,2422.9,2422.7,0.41285]
[1728368237464,0.4181,2422.9,2422.4,6.8231]
[1728368237669,0.4181,2422.9,2422.7,0.41285]
[1728368238061,0.83093,2422.9,2422.7,0.41285]
[1728368238260,0.83093,2422.9,2422.6,0.41287]
[1728368238462,0.83093,2422.9,2422.7,0.41285]
[1728368238463,0.4181,2422.9,2422.7,0.41285]
[1728368238769,0.83094,2422.9,2422.7,0.41285]
[1728368238970,0.83094,2422.9,2422.6,0.41287]
[1728368239171,0.83094,2422.9,2422.7,0.41286]
[1728368239870,0.4181,2422.9,2422.4,3.6153]
[1728368240066,0.4181,2422.9,2422.8,0.41284]
[1728368240273,3.4148,2423.7,2422.8,6.4278]
[1728368240477,1.21673,2423.5,2423.3,0.41275]
[1728368240769,1.21673,2423.5,2423.2,0.41277]
[1728368240770,0.41275,2423.4,2423.2,0.41277]
[1728368241369,0.41275,2423.4,2423.0,3.22]
[1728368241558,0.41278,2423.2,2422.9,1.60841]
[1728368241759,0.41283,2423.0,2422.7,0.41285]
[1728368241964,0.41283,2423.0,2422.5,4.49155018]
[1728368241965,0.4175,2422.9,2422.8,0.41284]
[1728368242272,0.4038,2423.1,2423.0,0.41281]
[1728368242470,0.4038,2423.1,2422.6,1.0322]
[1728368242680,0.4038,2423.1,2422.5,4.66733]
[1728368242871,3.6116,2423.1,2422.5,0.4151]
[1728368243169,3.22,2422.7,2422.3,0.41292]
[1728368243369,1.65149,2422.6,2422.3,0.41292]
[1728368243572,1.2386,2422.6,2422.3,0.41292]
[1728368243875,1.65148,2422.6,2422.3,0.41292]
[1728368244574,1.2386,2422.6,2422.4,0.4129]
[1728368244875,1.2386,2422.6,2422.1,0.4234]
[1728368245064,1.2386,2422.6,2422.4,0.41291]
[1728368245662,1.65148,2422.6,2422.4,0.41291]
[1728368246168,1.65148,2422.6,2422.1,3.6434]
[1728368246477,1.2386,2422.6,2422.4,0.41291]
[1728368246662,1.65149,2422.6,2422.4,0.41291]
[1728368247267,1.2386,2422.6,2422.1,3.6434]
[1728368247473,0.41294,2422.3,2422.0,0.41297]
[1728368247664,3.6335,2422.2,2421.7,0.8066]
[1728368247870,0.8494,2422.1,2421.7,0.8066]
[1728368248065,1.26237,2422.1,2421.9,0.41299]
[1728368248269,0.8494,2422.1,2421.9,0.41299]
[1728368248469,0.8494,2422.1,2422.0,0.41298]
[1728368249070,3.6207,2422.5,2422.0,3.22]
[1728368249276,0.4129,2422.5,2422.2,0.41294]
[1728368249778,0.8488,2422.6,2422.2,3.22]
[1728368249972,0.8488,2422.6,2422.5,0.41289]
[1728368250181,1.12806,2423.0,2422.3,0.4092]
[1728368250182,0.4225,2423.0,2422.4,3.22]
[1728368250370,0.41287,2422.7,2422.5,3.22]
[1728368250568,0.8456,2423.0,2422.4,0.41291]
[1728368250779,0.8456,2423.0,2422.3,3.6292]
[1728368250976,0.41285,2422.8,2422.6,0.41287]
[1728368251174,1.25843,2423.0,2422.7,0.41285]
[1728368251784,0.41286,2422.8,2422.5,3.63289]
[1728368251982,0.41286,2422.8,2422.5,3.22]
[1728368252274,0.4009,2422.7,2422.5,3.22]
[1728368252474,0.81376,2422.7,2422.5,0.41289]
[1728368252678,0.4009,2422.7,2422.3,0.4092]
[1728368252869,1.0322,2422.6,2422.1,3.6125]
[1728368253073,0.4009,2422.7,2422.1,3.6125]
[1728368253074,0.3984,2422.5,2422.1,3.6125]
[1728368253384,0.81131,2422.5,2422.2,0.41294]
[1728368253682,0.3984,2422.5,2422.1,3.6125]
[1728368253880,0.41297,2422.1,2421.9,0.413]
[1728368254080,0.41295,2422.2,2422.0,0.41298]
[1728368254271,0.3989,2422.3,2422.0,0.41298]
[1728368254579,0.41298,2422.0,2421.8,1.63191]
[1728368254774,1.43124,2422.3,2421.8,1.2189]
[1728368254968,0.41297,2422.1,2421.9,0.41299]
[1728368255574,0.41297,2422.1,2421.8,1.2176]
[1728368256475,0.41297,2422.1,2421.9,0.41299]
[1728368256671,0.41297,2422.1,2421.8,1.2176]
[1728368257177,1.43124,2422.3,2421.8,1.2176]
[1728368257474,0.41297,2422.1,2421.9,0.41299]
[1728368257688,1.43124,2422.3,2421.8,0.8046]
[1728368258075,1.43124,2422.3,2421.5,4.4856]
[1728368258076,0.41301,2421.8,2421.6,0.41305]
[1728368258484,0.41301,2421.9,2421.7,0.41303]
[1728368258679,0.79911,2421.9,2421.7,0.41303]
[1728368259280,0.79911,2421.9,2421.5,0.4196]
[1728368259479,0.79911,2421.9,2421.6,0.41304]
[1728368259679,0.79911,2421.9,2421.6,0.41305]
[1728368260279,0.7991,2421.9,2421.6,0.41305]
[1728368260972,0.41302,2421.8,2421.6,0.41305]
[1728368261380,0.7991,2421.9,2421.6,0.41305]
[1728368261580,0.7991,2421.9,2421.7,0.41303]
[1728368261780,0.7991,2421.9,2421.5,0.4196]
[1728368261981,0.7991,2421.9,2421.6,0.41304]
[1728368262181,4.62642,2421.9,2421.4,0.41308]
[1728368262388,4.62642,2421.9,2421.6,0.41304]
[1728368262389,0.3928,2421.8,2421.6,0.41304]
[1728368262583,0.80582,2421.8,2421.5,0.41305]
[1728368263078,0.80582,2421.8,2421.3,0.8419]
[1728368263276,0.80582,2421.8,2421.6,0.41305]
[1728368263481,0.80582,2421.8,2421.5,0.41306]
[1728368264082,0.3928,2421.8,2421.3,0.8419]
[1728368264281,0.41304,2421.7,2421.5,0.41306]
[1728368264688,0.41305,2421.6,2421.3,1.25499]
[1728368264894,0.41305,2421.7,2421.4,0.41308]
[1728368265392,0.41305,2421.6,2421.4,0.41308]
[1728368265578,0.41305,2421.6,2421.3,1.25499]
[1728368265985,0.41305,2421.6,2421.4,0.41308]
[1728368266393,0.3928,2421.8,2421.3,0.8419]
[1728368266690,0.80582,2421.8,2421.6,0.41304]
[1728368266883,0.41304,2421.7,2421.5,0.41307]
[1728368267283,0.41304,2421.7,2421.3,0.8419]
[1728368267284,0.3928,2421.8,2421.3,0.8419]
[1728368267488,0.41304,2421.7,2421.4,0.41307]
[1728368267691,1.42537,2421.8,2421.3,1.25499]
[1728368267883,0.41308,2421.5,2421.3,0.8419]
[1728368268286,0.41308,2421.4,2421.3,0.8419]
[1728368269087,3.2078,2421.6,2421.3,0.8419]
[1728368269291,0.41307,2421.5,2421.3,0.8419]
[1728368269496,0.41307,2421.5,2421.3,1.25499]
[1728368270181,3.2078,2421.6,2421.3,1.25499]
[1728368270493,0.41307,2421.5,2421.3,0.8419]
[1728368270696,0.41307,2421.5,2421.3,1.25499]
[1728368272590,0.41308,2421.5,2421.3,0.8419]
[1728368272892,0.41308,2421.5,2421.3,1.255]
[1728368274288,0.41308,2421.4,2421.3,0.8419]
[1728368277187,0.41308,2421.4,2421.3,0.4197]
[1728368281698,0.4111,2421.7,2421.3,0.4197]
[1728368281889,0.4111,2421.7,2421.4,0.417]
[1728368282093,0.41306,2421.6,2421.4,0.83008]
[1728368282902,0.41307,2421.5,2421.4,0.83008]
[1728368283199,0.80582,2421.8,2421.6,0.41304]
[1728368283391,0.3928,2421.8,2421.7,0.41303]
[1728368283700,3.2078,2421.9,2421.8,0.41301]
[1728368283902,3.2078,2421.9,2421.6,3.22]
[1728368284206,0.41306,2421.6,2421.4,4.05008]
[1728368284501,0.41306,2421.6,2421.4,3.637]
[1728368284803,0.41306,2421.6,2421.4,4.05007]
[1728368285498,0.82884,2421.7,2421.5,0.41306]
[1728368285695,0.41306,2421.6,2421.4,4.05008]
[1728368288394,0.41306,2421.6,2421.3,0.4197]
[1728368288395,3.2078,2421.6,2421.3,0.4197]
[1728368288602,4.24043,2421.6,2421.3,0.4197]
[1728368288800,0.41308,2421.5,2421.3,0.8328]
[1728368289896,3.2078,2421.6,2421.3,0.4197]
[1728368290102,0.41309,2421.4,2421.2,3.63311]
[1728368290500,3.2078,2421.6,2421.1,0.3931]
[1728368290705,3.2078,2421.6,2421.2,0.41311]
[1728368290706,0.41309,2421.4,2421.2,0.41311]
[1728368291905,1.03267,2421.5,2421.1,0.3931]
[1728368292107,0.41308,2421.4,2421.2,0.41311]
[1728368292407,0.41308,2421.4,2421.1,0.3931]
[1728368292408,0.41312,2421.2,2421.1,0.3931]
[1728368292710,0.41312,2421.2,2420.9,3.2078]
[1728368292711,0.41313,2421.1,2420.9,3.62096]
[1728368292909,0.82743,2421.1,2420.9,3.62096]
[1728368293098,0.82744,2421.1,2420.9,3.62096]
[1728368293601,0.4143,2421.1,2420.9,3.2078]
[1728368293806,0.4143,2421.1,2421.0,0.41315]
[1728368294109,0.3915,2421.4,2421.0,3.22]
[1728368294307,1.42423,2421.4,2421.0,3.22]
[1728368294503,0.41314,2421.1,2420.9,3.62096]
[1728368294800,0.41311,2421.3,2421.1,0.41313]
[1728368295000,0.41311,2421.3,2420.9,3.2078]
[1728368295398,0.3915,2421.4,2420.9,3.2078]
[1728368295608,0.4131,2421.3,2420.9,3.2078]
[1728368295802,0.3915,2421.4,2421.0,0.41315]
[1728368296108,0.41312,2421.2,2421.0,0.41315]
[1728368296303,0.3915,2421.4,2420.9,3.2078]
[1728368296606,0.41311,2421.3,2421.1,0.41313]
[1728368299306,0.3915,2421.4,2420.9,3.2078]
[1728368299508,0.80459,2421.4,2421.2,0.41311]
[1728368300307,0.3915,2421.4,2421.2,0.41311]
[1728368300505,0.4131,2421.3,2421.1,0.41312]
[1728368301103,0.3915,2421.4,2421.0,3.22]
[1728368301405,0.80459,2421.4,2421.2,0.41311]
[1728368301606,3.3038,2421.9,2421.2,3.22]
[1728368301802,0.41304,2421.7,2421.5,0.41306]
[1728368302209,1.2213,2421.8,2421.7,0.41303]
[1728368302408,0.8323,2421.8,2421.7,0.41303]
[1728368302608,1.24531,2421.8,2421.6,3.63303]
[1728368302809,0.8323,2421.8,2421.4,3.22]
[1728368303116,1.24532,2421.8,2421.6,0.41303]
[1728368304910,1.24532,2421.8,2421.7,0.41303]
[1728368305506,1.24532,2421.8,2421.4,3.22]
[1728368305809,1.24532,2421.8,2421.6,0.41304]
[1728368306006,0.8323,2421.8,2421.3,0.8144]
[1728368306206,0.8323,2421.8,2421.5,0.41306]
[1728368306604,0.8323,2421.8,2421.3,0.8144]
[1728368306804,0.41311,2421.3,2421.0,1.07675018]
[1728368307012,3.2078,2421.6,2421.2,0.4131]
[1728368307212,0.41309,2421.4,2421.2,0.4131]
[1728368307720,0.81689,2421.4,2421.2,0.4131]
[1728368309507,0.41311,2421.3,2421.1,0.41313]
[1728368309715,0.81891,2421.3,2421.0,1.23143]
[1728368310612,0.81891,2421.3,2421.1,0.41313]
[1728368310811,0.41312,2421.2,2421.0,0.82565]
[1728368311009,0.4058,2421.3,2420.9,0.41316]
[1728368311212,0.41313,2421.2,2420.8,3.5982]
[1728368311515,0.41313,2421.2,2420.9,0.41315]
[1728368312414,0.41313,2421.2,2421.0,0.41315]
[1728368313009,1.43653,2421.4,2421.1,3.22]
[1728368313010,0.4038,2421.4,2421.1,3.22]
[1728368313318,0.41304,2421.7,2421.3,3.22]
[1728368313509,0.41304,2421.7,2421.5,0.41306]
[1728368314022,4.4469,2421.9,2421.3,4.25275]
[1728368314208,0.41303,2421.7,2421.6,0.41304]
[1728368314613,4.54263,2421.7,2421.6,0.41304]
[1728368314907,4.1296,2421.7,2421.3,3.22]
[1728368315112,0.41304,2421.7,2421.6,0.41304]
[1728368315511,4.54264,2421.7,2421.6,0.41304]
[1728368315720,4.98269261,2421.9,2421.4,1.03271]
[1728368315910,0.41302,2421.8,2421.7,0.41303]
[1728368316111,4.98269261,2421.9,2421.7,0.41303]
[1728368316307,0.41301,2421.8,2421.7,0.41303]
[1728368316517,4.4469,2421.9,2421.8,0.41301]
[1728368316723,4.85991,2421.9,2421.7,0.41302]
[1728368316917,4.85991,2421.9,2421.4,1.03271]
[1728368317119,4.85991,2421.9,2421.8,0.41301]
[1728368317321,4.85991,2421.9,2421.4,1.03271]
[1728368317519,4.4469,2421.9,2421.8,0.41301]
[1728368317725,4.4469,2421.9,2421.4,2.10946018]
[1728368318023,0.41301,2421.8,2421.7,0.41302]
[1728368319031,1.2391,2421.9,2421.8,0.41301]
[1728368319215,3.2078,2422.2,2422.0,0.41297]
[1728368319423,0.41295,2422.2,2422.0,0.41297]
[1728368319620,0.4137,2422.1,2422.0,0.41297]
[1728368320124,0.7779,2422.5,2421.9,3.22]
[1728368320426,0.41293,2422.3,2422.2,0.41294]
[1728368320632,0.4137,2422.4,2422.3,0.41293]
[1728368320819,0.4137,2422.4,2422.0,0.4008]
[1728368321129,0.4137,2422.4,2421.8,0.424]
[1728368321322,0.4137,2422.4,2421.8,0.8248]
[1728368321323,0.41297,2422.1,2421.8,0.8248]
[1728368321534,1.21039,2422.0,2421.8,1.23781]
[1728368321825,1.62179,2422.0,2421.7,3.62083]
[1728368322228,1.62179,2422.0,2421.5,4.0448]
[1728368322229,3.22,2421.8,2421.3,0.096]
[1728368322428,3.22,2421.8,2421.1,5.27375018]
[1728368322429,3.22,2421.5,2421.1,0.096]
[1728368322633,0.4131,2421.3,2420.9,1.63836]
[1728368322934,1.648,2421.4,2421.0,0.41314]
[1728368323325,1.648,2421.4,2420.9,1.2252]
[1728368323527,1.648,2421.4,2421.0,0.41314]
[1728368324833,1.648,2421.4,2420.9,1.2252]
[1728368325034,1.648,2421.4,2421.0,0.41315]
[1728368325240,0.4131,2421.3,2420.9,1.63836]
[1728368325436,1.64799,2421.4,2421.0,0.41315]
[1728368326140,0.4131,2421.3,2421.0,0.41315]
[1728368326330,1.648,2421.4,2421.0,0.41315]
[1728368327042,0.4131,2421.3,2421.0,0.41315]
[1728368327238,0.4131,2421.3,2420.7,3.2078]
[1728368327239,6.4278,2421.3,2420.7,3.2078]
[1728368327450,3.22,2421.1,2420.6,0.9328]
[1728368327636,3.22,2421.1,2420.2,9.470402]
[1728368327637,3.6332,2420.8,2420.2,10.1160269]
[1728368327933,3.22,2420.6,2420.2,4.63527672]
[1728368328138,3.22,2420.6,2420.4,0.41324]
[1728368328539,3.22,2420.6,2420.1,4.0446]
[1728368328742,0.41324,2420.5,2420.1,4.4579]
[1728368329044,3.63323,2420.6,2420.2,0.41329]
[1728368329841,3.22,2420.6,2420.3,0.41327]
[1728368330341,3.22,2420.6,2420.1,0.8368]
[1728368330543,3.22,2420.6,2420.3,0.41326]
[1728368330734,4.8499,2420.7,2420.4,0.41325]
[1728368331039,1.6421,2420.7,2420.4,0.41325]
[1728368331236,6.84096,2421.0,2420.7,0.4132]
[1728368331428,6.8432,2421.0,2420.8,0.41318]
[1728368331630,3.6232,2421.0,2420.3,6.4278]
[1728368331837,3.6232,2421.0,2420.7,0.41319]
[1728368332336,4.03635,2421.0,2420.7,0.41319]
[1728368332939,3.6232,2421.0,2420.7,0.41319]
[1728368333135,0.41317,2420.9,2420.6,0.41321]
[1728368333335,7.2681,2421.0,2420.3,6.4278]
[1728368333537,7.68126,2421.0,2420.7,0.4132]
[1728368334235,7.68126,2421.0,2420.3,6.4278]
[1728368334236,0.41319,2420.8,2420.5,0.41323]
[1728368334435,0.41319,2420.8,2420.3,3.22]
[1728368334644,0.41317,2420.9,2420.6,0.41322]
[1728368334941,7.68126,2421.0,2420.7,0.41319]
[1728368335343,4.46126,2421.0,2420.8,0.41318]
[1728368335742,4.46126,2421.0,2420.3,4.25316]
[1728368335943,4.0481,2421.0,2420.9,0.41317]
[1728368336140,3.6232,2421.0,2420.9,0.41317]
[1728368337145,3.6232,2421.0,2420.6,1.1863]
[1728368337447,3.6232,2421.0,2420.8,0.41318]
[1728368337941,3.6232,2421.0,2420.9,0.41317]
[1728368338141,3.6232,2421.0,2420.8,0.41318]
[1728368340048,0.4154,2421.0,2420.8,0.41318]
[1728368340258,0.82856,2421.0,2420.7,0.4132]
[1728368340446,0.4154,2421.0,2420.6,0.7991]
[1728368340750,0.41319,2420.8,2420.5,0.41322]
[1728368340942,0.41317,2420.9,2420.4,0.8049]
[1728368341247,0.82856,2421.0,2420.7,0.4132]
[1728368341637,0.41317,2420.9,2420.4,0.8049]
[1728368341845,0.41317,2420.9,2420.6,0.41321]
[1728368343345,0.4132,2420.8,2420.5,0.41323]
[1728368343546,0.387,2420.7,2420.5,0.41323]
[1728368343953,0.4073,2420.6,2420.4,1.21815]
[1728368344147,0.4073,2420.6,2420.5,0.41324]
[1728368345145,0.41316,2421.0,2420.6,0.41322]
[1728368345341,0.8044,2421.0,2420.8,0.41318]
[1728368345537,0.8044,2421.0,2420.4,1.03312]
[1728368345742,1.21756,2421.0,2420.3,7.46096]
[1728368345939,0.8044,2421.0,2420.5,3.22]
[1728368346143,0.4174,2421.0,2420.9,0.41317]
[1728368346449,0.4174,2421.0,2420.8,0.41318]
[1728368346943,7.3504,2420.9,2420.2,0.8819]
[1728368347140,0.82688,2420.9,2420.6,0.41321]
[1728368347751,0.82688,2420.9,2420.3,0.4249]
[1728368347752,0.41319,2420.8,2420.5,0.41322]
[1728368348151,0.41319,2420.8,2420.6,0.41322]
[1728368348545,0.41319,2420.8,2420.5,0.41323]
[1728368350256,0.41319,2420.8,2420.4,0.41325]
[1728368350552,0.41319,2420.8,2420.3,0.4249]
[1728368350754,0.4137,2420.9,2420.3,0.4249]
[1728368350950,0.4132,2420.8,2420.5,0.41323]
[1728368351551,0.4137,2420.9,2420.3,0.4249]
[1728368351552,0.4132,2420.7,2420.4,0.41324]
[1728368351846,0.4132,2420.7,2420.3,0.4249]
[1728368351847,0.4132,2420.7,2420.5,0.41323]
[1728368352154,0.4029,2420.6,2420.3,0.4249]
[1728368352356,0.4029,2420.6,2420.5,0.41324]
[1728368354057,0.4029,2420.6,2420.3,0.4249]
[1728368354251,0.4029,2420.6,2420.4,0.41325]
[1728368354559,0.4029,2420.6,2420.5,0.41324]
[1728368355553,0.4137,2420.9,2420.4,3.22]
[1728368355756,0.8215,2420.9,2420.8,0.41318]
[1728368356549,3.2078,2421.1,2420.6,3.22]
[1728368356857,3.2078,2421.1,2421.0,0.41315]
[1728368358062,0.096,2421.6,2421.0,8.38326]
[1728368358357,0.41303,2421.8,2421.5,0.41306]
[1728368358558,0.41302,2421.8,2421.5,0.41306]
[1728368358754,0.8225,2421.9,2421.6,0.41305]
[1728368358953,0.8225,2421.9,2421.5,3.22]
[1728368359150,0.4067,2421.9,2421.5,3.6086]
[1728368359354,0.4067,2421.9,2421.8,0.41301]
[1728368359958,3.2078,2422.1,2421.7,3.22]
[1728368360162,3.2078,2422.1,2421.7,3.2078]
[1728368360355,6.4278,2422.1,2421.5,0.3886]
[1728368360653,6.84076,2422.1,2421.7,0.41302]
[1728368361059,0.3967,2422.0,2421.7,0.41302]